[Event "Titled Tuesday Blitz December 06 Late 2022"]
[White "Girsh, Daniel"]
[Black "Maksimovic, Bojan"]
[WhiteFideId "30949190"]
[BlackFideId "14408120"]
[WhiteElo "2075"]
[BlackElo "2462"]
[Result "0-1"]
[Round "01"]
[TimeControl "180+1"]
[Date "2022.12.07"]
[WhiteClock "0:00:49"]
[BlackClock "0:00:40"]

1. e4 {[%clk 0:03:00]}  c5 {[%clk 0:02:56]} 2. Nf3 {[%clk 0:03:01]}  e6 {[%clk 0:02:55]} 3. d4 {[%clk 0:03:01]}  cxd4 {[%clk 0:02:56]} 4. Nxd4 {[%clk 0:03:02]}  a6 {[%clk 0:02:56]} 5. c4 {[%clk 0:03:01]}  Nf6 {[%clk 0:02:56]} 6. Nc3 {[%clk 0:03:02]}  Qc7 {[%clk 0:02:56]} 7. a3 {[%clk 0:03:02]}  b6 {[%clk 0:02:57]} 8. Be2 {[%clk 0:03:03]}  Bb7 {[%clk 0:02:57]} 9. f3 {[%clk 0:03:03]}  d6 {[%clk 0:02:58]} 10. Be3 {[%clk 0:03:04]}  Nbd7 {[%clk 0:02:58]} 11. O-O {[%clk 0:03:04]}  Be7 {[%clk 0:02:59]} 12. Rc1 {[%clk 0:03:05]}  O-O {[%clk 0:03:00]} 13. b4 {[%clk 0:03:05]}  Rac8 {[%clk 0:02:59]} 14. Qd2 {[%clk 0:03:06]}  Rfe8 {[%clk 0:02:59]} 15. Rfd1 {[%clk 0:03:06]}  Qb8 {[%clk 0:02:59]} 16. Nb3 {[%clk 0:03:06]}  Bd8 {[%clk 0:02:59]} 17. Bf1 {[%clk 0:03:02]}  Bc7 {[%clk 0:02:56]} 18. Bf4 {[%clk 0:03:03]}  Ne5 {[%clk 0:02:35]} 19. Bxe5 {[%clk 0:03:02]}  dxe5 {[%clk 0:02:35]} 20. c5 {[%clk 0:03:03]}  bxc5 {[%clk 0:02:29]} 21. Nxc5 {[%clk 0:03:03]}  Bb6 {[%clk 0:02:27]} 22. Na4 {[%clk 0:03:02]}  Ba7 {[%clk 0:02:26]} 23. Kh1 {[%clk 0:03:02]}  Rcd8 {[%clk 0:02:22]} 24. Qe1 {[%clk 0:02:57]}  Rd4 {[%clk 0:02:04]} 25. Nxa6 {[%clk 0:02:52]}  Bxa6 {[%clk 0:02:02]} 26. Bxa6 {[%clk 0:02:52]}  h5 {[%clk 0:01:58]} 27. Nc5 {[%clk 0:02:51]}  Red8 {[%clk 0:01:54]} 28. Rxd4 {[%clk 0:02:42]}  exd4 {[%clk 0:01:54]} 29. Nd3 {[%clk 0:02:23]}  Qb6 {[%clk 0:01:32]} 30. b5 {[%clk 0:02:21]}  Bb8 {[%clk 0:01:29]} 31. Rc6 {[%clk 0:02:21]}  Qa7 {[%clk 0:01:27]} 32. Qa5 {[%clk 0:02:12]}  Qe7 {[%clk 0:01:26]} 33. Qxd8+ {[%clk 0:02:07]}  Qxd8 {[%clk 0:01:25]} 34. Rc8 {[%clk 0:02:08]}  Qxc8 {[%clk 0:01:25]} 35. Bxc8 {[%clk 0:02:09]}  Bc7 {[%clk 0:01:24]} 36. Kg1 {[%clk 0:01:58]}  Kf8 {[%clk 0:01:22]} 37. Kf1 {[%clk 0:01:56]}  Ke7 {[%clk 0:01:22]} 38. Ke1 {[%clk 0:01:55]}  Ne8 {[%clk 0:01:04]} 39. Bb7 {[%clk 0:01:53]}  Nd6 {[%clk 0:00:56]} 40. Bc6 {[%clk 0:01:50]}  Nc4 {[%clk 0:00:56]} 41. a4 {[%clk 0:01:48]}  Bxh2 {[%clk 0:00:57]} 42. f4 {[%clk 0:01:40]}  f6 {[%clk 0:00:52]} 43. Kf2 {[%clk 0:01:37]}  g5 {[%clk 0:00:49]} 44. g3 {[%clk 0:01:31]}  h4 {[%clk 0:00:45]} 45. gxh4 {[%clk 0:01:31]}  gxh4 {[%clk 0:00:42]} 46. Kg2 {[%clk 0:01:16]}  Bg3 {[%clk 0:00:42]} 47. Kh3 {[%clk 0:00:56]}  Kd6 {[%clk 0:00:38]} 48. Kg4 {[%clk 0:00:41]}  Kc7 {[%clk 0:00:33]} 49. Nc5 {[%clk 0:00:35]}  e5 {[%clk 0:00:27]} 50. f5 {[%clk 0:00:31]}  Kd6 {[%clk 0:00:15]} 51. Kf3 {[%clk 0:00:30]}  Kxc5 {[%clk 0:00:15]} 52. Bd5 {[%clk 0:00:29]}  Nb6 {[%clk 0:00:11]} 53. a5 {[%clk 0:00:29]}  Nxd5 {[%clk 0:00:11]} 54. exd5 {[%clk 0:00:27]}  Kxd5 {[%clk 0:00:10]} 55. a6 {[%clk 0:00:26]}  e4+ {[%clk 0:00:11]} 56. Kg4 {[%clk 0:00:24]}  Bb8 {[%clk 0:00:04]} 57. b6 {[%clk 0:00:22]}  Kc6 {[%clk 0:00:05]} 58. a7 {[%clk 0:00:19]}  Bxa7 {[%clk 0:00:05]} 59. bxa7 {[%clk 0:00:20]}  Kb7 {[%clk 0:00:06]} 60. Kxh4 {[%clk 0:00:20]}  d3 {[%clk 0:00:06]} 61. Kg4 {[%clk 0:00:21]}  d2 {[%clk 0:00:06]} 62. Kf4 {[%clk 0:00:22]}  d1=Q {[%clk 0:00:07]} 63. Kxe4 {[%clk 0:00:23]}  Qc2+ {[%clk 0:00:07]} 64. Kf4 {[%clk 0:00:23]}  Qc4+ {[%clk 0:00:07]} 65. Kf3 {[%clk 0:00:23]}  Kxa7 {[%clk 0:00:07]} 66. Kg3 {[%clk 0:00:22]}  Kb7 {[%clk 0:00:08]} 67. Kf3 {[%clk 0:00:23]}  Kc7 {[%clk 0:00:09]} 68. Kg3 {[%clk 0:00:23]}  Kd7 {[%clk 0:00:10]} 69. Kf3 {[%clk 0:00:24]}  Ke7 {[%clk 0:00:11]} 70. Kg3 {[%clk 0:00:25]}  Kf7 {[%clk 0:00:12]} 71. Kf3 {[%clk 0:00:26]}  Kg7 {[%clk 0:00:13]} 72. Kg3 {[%clk 0:00:27]}  Kh7 {[%clk 0:00:14]} 73. Kh3 {[%clk 0:00:27]}  Kh8 {[%clk 0:00:15]} 74. Kg3 {[%clk 0:00:28]}  Kg8 {[%clk 0:00:16]} 75. Kf3 {[%clk 0:00:29]}  Kg7 {[%clk 0:00:16]} 76. Ke3 {[%clk 0:00:29]}  Kh6 {[%clk 0:00:17]} 77. Kf3 {[%clk 0:00:30]}  Kh5 {[%clk 0:00:18]} 78. Kg3 {[%clk 0:00:31]}  Kg5 {[%clk 0:00:19]} 79. Kh3 {[%clk 0:00:31]}  Kxf5 {[%clk 0:00:20]} 80. Kh2 {[%clk 0:00:32]}  Ke5 {[%clk 0:00:21]} 81. Kh1 {[%clk 0:00:33]}  Ke6 {[%clk 0:00:22]} 82. Kg1 {[%clk 0:00:33]}  Kd6 {[%clk 0:00:23]} 83. Kh1 {[%clk 0:00:34]}  Kd5 {[%clk 0:00:24]} 84. Kg1 {[%clk 0:00:35]}  Kc5 {[%clk 0:00:25]} 85. Kf2 {[%clk 0:00:35]}  Kc6 {[%clk 0:00:25]} 86. Ke1 {[%clk 0:00:36]}  Kb6 {[%clk 0:00:26]} 87. Kd2 {[%clk 0:00:37]}  Kb5 {[%clk 0:00:27]} 88. Ke3 {[%clk 0:00:37]}  Kb4 {[%clk 0:00:28]} 89. Kf3 {[%clk 0:00:37]}  Ka4 {[%clk 0:00:29]} 90. Kg2 {[%clk 0:00:38]}  Ka3 {[%clk 0:00:30]} 91. Kh1 {[%clk 0:00:38]}  Kb3 {[%clk 0:00:31]} 92. Kg1 {[%clk 0:00:39]}  Kb2 {[%clk 0:00:32]} 93. Kh1 {[%clk 0:00:39]}  Ka2 {[%clk 0:00:33]} 94. Kg1 {[%clk 0:00:40]}  Ka1 {[%clk 0:00:34]} 95. Kh1 {[%clk 0:00:41]}  Kb1 {[%clk 0:00:34]} 96. Kh2 {[%clk 0:00:41]}  Qg4 {[%clk 0:00:34]} 97. Kh1 {[%clk 0:00:41]}  Kc2 {[%clk 0:00:35]} 98. Kh2 {[%clk 0:00:42]}  Kc3 {[%clk 0:00:36]} 99. Kh1 {[%clk 0:00:43]}  Kc4 {[%clk 0:00:37]} 100. Kh2 {[%clk 0:00:44]}  Kd4 {[%clk 0:00:38]} 101. Kh1 {[%clk 0:00:45]}  Ke4 {[%clk 0:00:39]} 102. Kh2 {[%clk 0:00:46]}  Kf4 {[%clk 0:00:39]} 103. Kh1 {[%clk 0:00:47]}  Kf3 {[%clk 0:00:40]} 104. Kh2 {[%clk 0:00:48]}  Kf2 {[%clk 0:00:40]} 105. Kh1 {[%clk 0:00:49]}  Qg2# {[%clk 0:00:40]} 0-1


[Site "https://www.chess.com"]

[Event "Titled Tuesday Blitz December 06 Late 2022"]
[White "Goncalves, Davi Sulzbacher"]
[Black "Quesada Perez, Yuniesky"]
[WhiteFideId "2154510"]
[BlackFideId "3504409"]
[WhiteElo "2182"]
[BlackElo "2600"]
[Result "0-1"]
[Round "01"]
[TimeControl "180+1"]
[Date "2022.12.06"]
[WhiteClock "0:00:05"]
[BlackClock "0:01:03"]

1. d4 {[%clk 0:03:00]}  d5 {[%clk 0:02:56]} 2. Nf3 {[%clk 0:02:59]}  Nf6 {[%clk 0:02:56]} 3. c4 {[%clk 0:03:00]}  c6 {[%clk 0:02:56]} 4. Nc3 {[%clk 0:02:58]}  e6 {[%clk 0:02:56]} 5. g3 {[%clk 0:02:57]}  Nbd7 {[%clk 0:02:55]} 6. Bg2 {[%clk 0:02:57]}  dxc4 {[%clk 0:02:55]} 7. O-O {[%clk 0:02:57]}  Be7 {[%clk 0:02:54]} 8. e4 {[%clk 0:02:51]}  O-O {[%clk 0:02:50]} 9. a4 {[%clk 0:02:44]}  e5 {[%clk 0:02:49]} 10. dxe5 {[%clk 0:02:39]}  Ng4 {[%clk 0:02:49]} 11. e6 {[%clk 0:02:22]}  fxe6 {[%clk 0:02:49]} 12. Nd4 {[%clk 0:02:20]}  Nde5 {[%clk 0:02:40]} 13. h3 {[%clk 0:02:16]}  Nd3 {[%clk 0:02:29]} 14. Nxc6 {[%clk 0:02:00]}  Ngxf2 {[%clk 0:02:21]} 15. Nxe7+ {[%clk 0:00:53]}  Qxe7 {[%clk 0:02:22]} 16. Qe2 {[%clk 0:00:47]}  Nxc1 {[%clk 0:02:17]} 17. Raxc1 {[%clk 0:00:46]}  Nd3 {[%clk 0:02:15]} 18. Rxf8+ {[%clk 0:00:46]}  Qxf8 {[%clk 0:02:15]} 19. Rf1 {[%clk 0:00:46]}  Qc5+ {[%clk 0:02:10]} 20. Kh2 {[%clk 0:00:46]}  Bd7 {[%clk 0:02:11]} 21. e5 {[%clk 0:00:21]}  Bc6 {[%clk 0:01:55]} 22. Qg4 {[%clk 0:00:18]}  Qxe5 {[%clk 0:01:30]} 23. Bxc6 {[%clk 0:00:17]}  bxc6 {[%clk 0:01:31]} 24. Qxc4 {[%clk 0:00:16]}  Nxb2 {[%clk 0:01:24]} 25. Qb3 {[%clk 0:00:11]}  Rb8 {[%clk 0:01:13]} 26. Qc2 {[%clk 0:00:05]}  Nc4 {[%clk 0:01:10]} 27. Ne2 {[%clk 0:00:05]}  Ne3 {[%clk 0:01:03]} 0-1


[Site "https://www.chess.com"]

[Event "Titled Tuesday Blitz December 06 Late 2022"]
[White "Grot, Blazej"]
[Black "Postnikov, Daniil"]
[WhiteFideId "21835845"]
[BlackFideId "4166329"]
[WhiteElo "1823"]
[BlackElo "2261"]
[Result "0-1"]
[Round "01"]
[TimeControl "180+1"]
[Date "2022.12.07"]
[WhiteClock "0:00:20"]
[BlackClock "0:01:40"]

1. e4 {[%clk 0:02:56]}  e6 {[%clk 0:02:58]} 2. d3 {[%clk 0:02:52]}  d5 {[%clk 0:02:59]} 3. Nd2 {[%clk 0:02:51]}  Nf6 {[%clk 0:02:59]} 4. Ngf3 {[%clk 0:02:50]}  c5 {[%clk 0:03:00]} 5. c3 {[%clk 0:02:49]}  g6 {[%clk 0:03:00]} 6. Qc2 {[%clk 0:02:49]}  Bg7 {[%clk 0:02:58]} 7. g3 {[%clk 0:02:50]}  O-O {[%clk 0:02:59]} 8. Bg2 {[%clk 0:02:50]}  Nc6 {[%clk 0:02:59]} 9. O-O {[%clk 0:02:50]}  a5 {[%clk 0:03:00]} 10. Re1 {[%clk 0:02:51]}  b5 {[%clk 0:02:58]} 11. h4 {[%clk 0:02:49]}  b4 {[%clk 0:02:57]} 12. Nf1 {[%clk 0:02:49]}  Ba6 {[%clk 0:02:57]} 13. N1h2 {[%clk 0:02:49]}  dxe4 {[%clk 0:02:54]} 14. dxe4 {[%clk 0:02:49]}  Bd3 {[%clk 0:02:54]} 15. Qa4 {[%clk 0:02:42]}  Qb6 {[%clk 0:02:43]} 16. e5 {[%clk 0:02:34]}  Nd5 {[%clk 0:02:34]} 17. Qd1 {[%clk 0:02:27]}  c4 {[%clk 0:02:29]} 18. h5 {[%clk 0:02:21]}  bxc3 {[%clk 0:02:28]} 19. bxc3 {[%clk 0:02:15]}  Nxc3 {[%clk 0:02:29]} 20. Qd2 {[%clk 0:02:13]}  Ne4 {[%clk 0:02:12]} 21. Qe3 {[%clk 0:01:52]}  Qxe3 {[%clk 0:02:09]} 22. Bxe3 {[%clk 0:01:53]}  Nxe5 {[%clk 0:02:09]} 23. Nxe5 {[%clk 0:01:47]}  Bxe5 {[%clk 0:02:10]} 24. Rac1 {[%clk 0:01:37]}  Bb2 {[%clk 0:02:07]} 25. Bxe4 {[%clk 0:01:32]}  Bxc1 {[%clk 0:02:05]} 26. Bxa8 {[%clk 0:01:25]}  Bxe3 {[%clk 0:02:05]} 27. hxg6 {[%clk 0:01:15]}  Bd2 {[%clk 0:01:58]} 28. gxh7+ {[%clk 0:01:12]}  Kg7 {[%clk 0:01:56]} 29. Re5 {[%clk 0:00:36]}  Rxa8 {[%clk 0:01:52]} 30. Ng4 {[%clk 0:00:33]}  c3 {[%clk 0:01:49]} 31. f4 {[%clk 0:00:31]}  c2 {[%clk 0:01:48]} 32. Rg5+ {[%clk 0:00:31]}  Kh8 {[%clk 0:01:46]} 33. Nf6 {[%clk 0:00:27]}  c1=Q+ {[%clk 0:01:43]} 34. Kh2 {[%clk 0:00:27]}  Bg6 {[%clk 0:01:41]} 35. f5 {[%clk 0:00:21]}  Bxg5 {[%clk 0:01:41]} 36. fxg6 {[%clk 0:00:21]}  Bxf6 {[%clk 0:01:40]} 37. g7+ {[%clk 0:00:20]}  Kxg7 {[%clk 0:01:40]} 0-1


[Site "https://www.chess.com"]

[Event "Titled Tuesday Blitz December 06 Late 2022"]
[White "Guzman Moneo, Alberto"]
[Black "Averjanov, Alexey"]
[WhiteFideId "2209616"]
[BlackFideId "14109867"]
[WhiteElo "2157"]
[BlackElo "2669"]
[Result "0-1"]
[Round "01"]
[TimeControl "180+1"]
[Date "2022.12.07"]
[WhiteClock "0:00:07"]
[BlackClock "0:00:06"]

1. c4 {[%clk 0:02:51]}  c5 {[%clk 0:02:59]} 2. Nf3 {[%clk 0:02:50]}  Nc6 {[%clk 0:02:59]} 3. d4 {[%clk 0:02:51]}  cxd4 {[%clk 0:02:59]} 4. Nxd4 {[%clk 0:02:51]}  g6 {[%clk 0:02:59]} 5. Nc3 {[%clk 0:02:49]}  Bg7 {[%clk 0:02:59]} 6. e3 {[%clk 0:02:50]}  Nf6 {[%clk 0:02:58]} 7. Be2 {[%clk 0:02:50]}  Nxd4 {[%clk 0:02:58]} 8. Qxd4 {[%clk 0:02:48]}  O-O {[%clk 0:02:57]} 9. O-O {[%clk 0:02:48]}  d6 {[%clk 0:02:52]} 10. Rd1 {[%clk 0:02:40]}  Be6 {[%clk 0:02:51]} 11. Qd2 {[%clk 0:02:36]}  Rc8 {[%clk 0:02:49]} 12. b3 {[%clk 0:02:35]}  Ne4 {[%clk 0:02:48]} 13. Nxe4 {[%clk 0:02:35]}  Bxa1 {[%clk 0:02:48]} 14. Ng5 {[%clk 0:02:33]}  Qd7 {[%clk 0:02:38]} 15. Ba3 {[%clk 0:02:23]}  Bf6 {[%clk 0:02:35]} 16. Ne4 {[%clk 0:02:19]}  Bg7 {[%clk 0:02:36]} 17. c5 {[%clk 0:02:18]}  d5 {[%clk 0:02:36]} 18. Nc3 {[%clk 0:02:10]}  Rfd8 {[%clk 0:02:35]} 19. Bb5 {[%clk 0:02:07]}  Qc7 {[%clk 0:02:35]} 20. Ne2 {[%clk 0:01:58]}  Bd7 {[%clk 0:02:33]} 21. Bd3 {[%clk 0:01:44]}  b6 {[%clk 0:02:29]} 22. Rc1 {[%clk 0:01:34]}  bxc5 {[%clk 0:02:22]} 23. Bxc5 {[%clk 0:01:33]}  Be8 {[%clk 0:02:12]} 24. Bd4 {[%clk 0:01:23]}  Qb7 {[%clk 0:01:56]} 25. Rd1 {[%clk 0:01:14]}  Bxd4 {[%clk 0:01:50]} 26. Nxd4 {[%clk 0:01:14]}  e5 {[%clk 0:01:49]} 27. Ne2 {[%clk 0:01:09]}  Bb5 {[%clk 0:01:48]} 28. h4 {[%clk 0:01:04]}  Bxd3 {[%clk 0:01:40]} 29. Qxd3 {[%clk 0:01:04]}  h5 {[%clk 0:01:39]} 30. Ng3 {[%clk 0:00:56]}  Qc6 {[%clk 0:01:35]} 31. Qe2 {[%clk 0:00:53]}  Qc2 {[%clk 0:01:31]} 32. Rd2 {[%clk 0:00:53]}  Qb1+ {[%clk 0:01:31]} 33. Kh2 {[%clk 0:00:54]}  Rc1 {[%clk 0:01:30]} 34. Qa6 {[%clk 0:00:41]}  Rc2 {[%clk 0:01:16]} 35. Qa5 {[%clk 0:00:35]}  Rxd2 {[%clk 0:01:03]} 36. Qxd8+ {[%clk 0:00:35]}  Kg7 {[%clk 0:00:50]} 37. Qg5 {[%clk 0:00:30]}  Rxf2 {[%clk 0:00:19]} 38. Nxh5+ {[%clk 0:00:21]}  Kg8 {[%clk 0:00:17]} 39. Nf6+ {[%clk 0:00:19]}  Rxf6 {[%clk 0:00:14]} 40. Qxf6 {[%clk 0:00:19]}  Qe4 {[%clk 0:00:14]} 41. Qd8+ {[%clk 0:00:17]}  Kg7 {[%clk 0:00:14]} 42. Qg5 {[%clk 0:00:17]}  d4 {[%clk 0:00:12]} 43. exd4 {[%clk 0:00:16]}  exd4 {[%clk 0:00:13]} 44. h5 {[%clk 0:00:16]}  d3 {[%clk 0:00:13]} 45. hxg6 {[%clk 0:00:14]}  fxg6 {[%clk 0:00:14]} 46. Qd2 {[%clk 0:00:11]}  Qe2 {[%clk 0:00:13]} 47. Qc3+ {[%clk 0:00:11]}  Kh7 {[%clk 0:00:13]} 48. Qc7+ {[%clk 0:00:10]}  Kh6 {[%clk 0:00:14]} 49. Qf4+ {[%clk 0:00:09]}  Kg7 {[%clk 0:00:14]} 50. Qc7+ {[%clk 0:00:09]}  Kf6 {[%clk 0:00:14]} 51. Qd6+ {[%clk 0:00:09]}  Kf5 {[%clk 0:00:13]} 52. Qf8+ {[%clk 0:00:07]}  Ke4 {[%clk 0:00:13]} 53. Qe7+ {[%clk 0:00:07]}  Kd4 {[%clk 0:00:12]} 54. Qb4+ {[%clk 0:00:07]}  Ke3 {[%clk 0:00:12]} 55. Qe7+ {[%clk 0:00:07]}  Kd2 {[%clk 0:00:12]} 56. Qb4+ {[%clk 0:00:07]}  Kd1 {[%clk 0:00:13]} 57. Qc3 {[%clk 0:00:05]}  d2 {[%clk 0:00:10]} 58. Qa1+ {[%clk 0:00:05]}  Kc2 {[%clk 0:00:10]} 59. a4 {[%clk 0:00:06]}  d1=Q {[%clk 0:00:08]} 60. Qa2+ {[%clk 0:00:06]}  Kc3 {[%clk 0:00:07]} 61. Qa3 {[%clk 0:00:07]}  Qe5+ {[%clk 0:00:06]} 62. Kh3 {[%clk 0:00:07]}  Qdh5# {[%clk 0:00:06]} 0-1


[Site "https://www.chess.com"]

[Event "Titled Tuesday Blitz December 06 Late 2022"]
[White "Jaskolka, Tomasz"]
[Black "Zhigalko, Sergei"]
[WhiteFideId "1170791"]
[BlackFideId "13502956"]
[WhiteElo "2126"]
[BlackElo "2662"]
[Result "0-1"]
[Round "01"]
[TimeControl "180+1"]
[Date "2022.12.06"]
[WhiteClock "0:00:30"]
[BlackClock "0:01:24"]

1. e4 {[%clk 0:02:58]}  c5 {[%clk 0:02:59]} 2. Nf3 {[%clk 0:02:58]}  Nc6 {[%clk 0:03:00]} 3. Bb5 {[%clk 0:02:57]}  Nf6 {[%clk 0:02:59]} 4. e5 {[%clk 0:02:56]}  Nd5 {[%clk 0:02:59]} 5. Nc3 {[%clk 0:02:53]}  Nc7 {[%clk 0:02:59]} 6. Bxc6 {[%clk 0:02:51]}  dxc6 {[%clk 0:03:00]} 7. O-O {[%clk 0:02:51]}  h6 {[%clk 0:03:00]} 8. Re1 {[%clk 0:02:52]}  Bf5 {[%clk 0:03:00]} 9. d3 {[%clk 0:02:47]}  Ne6 {[%clk 0:03:00]} 10. Ne4 {[%clk 0:02:46]}  g5 {[%clk 0:03:00]} 11. b3 {[%clk 0:02:41]}  Bg7 {[%clk 0:02:59]} 12. Bb2 {[%clk 0:02:41]}  Qd5 {[%clk 0:02:53]} 13. c4 {[%clk 0:02:00]}  Qd7 {[%clk 0:02:51]} 14. d4 {[%clk 0:02:01]}  cxd4 {[%clk 0:02:47]} 15. Nxd4 {[%clk 0:01:47]}  Nxd4 {[%clk 0:02:38]} 16. Qxd4 {[%clk 0:01:46]}  Qxd4 {[%clk 0:02:35]} 17. Bxd4 {[%clk 0:01:46]}  O-O-O {[%clk 0:02:34]} 18. Bc3 {[%clk 0:01:31]}  Rd3 {[%clk 0:02:31]} 19. Bb4 {[%clk 0:01:27]}  Bxe5 {[%clk 0:02:18]} 20. Nc5 {[%clk 0:01:03]}  Bxa1 {[%clk 0:02:17]} 21. Nxd3 {[%clk 0:01:03]}  Bf6 {[%clk 0:01:57]} 22. Ne5 {[%clk 0:01:02]}  Be6 {[%clk 0:01:57]} 23. f3 {[%clk 0:00:55]}  Rd8 {[%clk 0:01:54]} 24. Kf2 {[%clk 0:00:55]}  c5 {[%clk 0:01:46]} 25. Bc3 {[%clk 0:00:48]}  Kc7 {[%clk 0:01:39]} 26. g3 {[%clk 0:00:47]}  b6 {[%clk 0:01:35]} 27. f4 {[%clk 0:00:47]}  gxf4 {[%clk 0:01:36]} 28. Ba1 {[%clk 0:00:35]}  Rd2+ {[%clk 0:01:32]} 29. Kf3 {[%clk 0:00:35]}  fxg3 {[%clk 0:01:30]} 30. hxg3 {[%clk 0:00:35]}  Rxa2 {[%clk 0:01:30]} 31. Bc3 {[%clk 0:00:35]}  Ra3 {[%clk 0:01:28]} 32. Kf4 {[%clk 0:00:29]}  Rxb3 {[%clk 0:01:28]} 33. Ba1 {[%clk 0:00:30]}  Bg5+ {[%clk 0:01:24]} 34. Ke4 {[%clk 0:00:30]}  f5# {[%clk 0:01:24]} 0-1


[Site "https://www.chess.com"]

[Event "Titled Tuesday Blitz December 06 Late 2022"]
[White "Kamsky, Gata"]
[Black "Haszon, David"]
[WhiteFideId "2000024"]
[BlackFideId "733610"]
[WhiteElo "2666"]
[BlackElo "2210"]
[Result "1-0"]
[Round "01"]
[TimeControl "180+1"]
[Date "2022.12.06"]
[WhiteClock "0:00:53"]
[BlackClock "0:00:52"]

1. d4 {[%clk 0:02:59]}  Nf6 {[%clk 0:02:59]} 2. Bf4 {[%clk 0:02:53]}  d5 {[%clk 0:02:56]} 3. e3 {[%clk 0:02:52]}  c5 {[%clk 0:02:52]} 4. c3 {[%clk 0:02:52]}  Nc6 {[%clk 0:02:50]} 5. Nd2 {[%clk 0:02:51]}  Qb6 {[%clk 0:02:44]} 6. Qb3 {[%clk 0:02:50]}  c4 {[%clk 0:02:40]} 7. Qc2 {[%clk 0:02:50]}  Nh5 {[%clk 0:02:34]} 8. Bg3 {[%clk 0:02:45]}  f5 {[%clk 0:02:20]} 9. Be2 {[%clk 0:02:30]}  Nxg3 {[%clk 0:02:19]} 10. hxg3 {[%clk 0:02:29]}  g6 {[%clk 0:02:16]} 11. f4 {[%clk 0:02:25]}  Bg7 {[%clk 0:02:13]} 12. Ngf3 {[%clk 0:02:21]}  Be6 {[%clk 0:02:04]} 13. Ng5 {[%clk 0:02:16]}  Bg8 {[%clk 0:02:02]} 14. g4 {[%clk 0:02:16]}  e6 {[%clk 0:01:57]} 15. gxf5 {[%clk 0:02:14]}  exf5 {[%clk 0:01:55]} 16. g4 {[%clk 0:02:14]}  Ne7 {[%clk 0:01:50]} 17. Qa4+ {[%clk 0:01:49]}  Qc6 {[%clk 0:01:46]} 18. Qxc6+ {[%clk 0:01:48]}  bxc6 {[%clk 0:01:47]} 19. b3 {[%clk 0:01:47]}  cxb3 {[%clk 0:01:38]} 20. axb3 {[%clk 0:01:46]}  h6 {[%clk 0:01:37]} 21. Nh3 {[%clk 0:01:43]}  fxg4 {[%clk 0:01:37]} 22. Bxg4 {[%clk 0:01:42]}  h5 {[%clk 0:01:38]} 23. Be2 {[%clk 0:01:35]}  Nf5 {[%clk 0:01:38]} 24. Kf2 {[%clk 0:01:33]}  Be6 {[%clk 0:01:26]} 25. b4 {[%clk 0:01:29]}  Bf6 {[%clk 0:01:20]} 26. Nf3 {[%clk 0:01:15]}  Nd6 {[%clk 0:01:17]} 27. Nhg5 {[%clk 0:01:12]}  Bxg5 {[%clk 0:01:16]} 28. Nxg5 {[%clk 0:01:11]}  Bf5 {[%clk 0:01:09]} 29. Ra6 {[%clk 0:01:09]}  Kd7 {[%clk 0:01:04]} 30. Rha1 {[%clk 0:01:09]}  Nc8 {[%clk 0:01:00]} 31. Nf7 {[%clk 0:01:08]}  Re8 {[%clk 0:00:59]} 32. Ne5+ {[%clk 0:01:08]}  Rxe5 {[%clk 0:00:59]} 33. dxe5 {[%clk 0:01:07]}  Rb8 {[%clk 0:00:59]} 34. Kg3 {[%clk 0:01:03]}  Rb7 {[%clk 0:00:58]} 35. Kh4 {[%clk 0:01:03]}  Ke6 {[%clk 0:00:58]} 36. Rxc6+ {[%clk 0:00:59]}  Ke7 {[%clk 0:00:56]} 37. Kg5 {[%clk 0:00:55]}  Nb6 {[%clk 0:00:53]} 38. Bxh5 {[%clk 0:00:53]}  Bd7 {[%clk 0:00:52]} 39. Rxg6 {[%clk 0:00:53]} 1-0


[Site "https://www.chess.com"]

[Event "Titled Tuesday Blitz December 06 Late 2022"]
[White "Koelle, Tobias"]
[Black "Graif, William"]
[WhiteFideId "16207378"]
[BlackFideId "2609835"]
[WhiteElo "2497"]
[BlackElo "2205"]
[Result "1-0"]
[Round "01"]
[TimeControl "180+1"]
[Date "2022.12.07"]
[WhiteClock "0:01:23"]
[BlackClock "0:00:03"]

1. d4 {[%clk 0:03:00]}  Nf6 {[%clk 0:02:56]} 2. Nf3 {[%clk 0:03:01]}  d5 {[%clk 0:02:52]} 3. e3 {[%clk 0:03:01]}  c5 {[%clk 0:02:51]} 4. Bd3 {[%clk 0:02:59]}  Nc6 {[%clk 0:02:49]} 5. c3 {[%clk 0:02:58]}  Bg4 {[%clk 0:02:40]} 6. O-O {[%clk 0:02:55]}  e5 {[%clk 0:02:06]} 7. dxe5 {[%clk 0:02:55]}  Nxe5 {[%clk 0:02:07]} 8. Be2 {[%clk 0:02:56]}  Bd6 {[%clk 0:01:39]} 9. Nxe5 {[%clk 0:02:51]}  Bxe2 {[%clk 0:01:37]} 10. Qxe2 {[%clk 0:02:34]}  Bxe5 {[%clk 0:01:37]} 11. Nd2 {[%clk 0:02:32]}  O-O {[%clk 0:01:32]} 12. Nf3 {[%clk 0:02:31]}  Bc7 {[%clk 0:01:30]} 13. b3 {[%clk 0:02:32]}  Re8 {[%clk 0:01:21]} 14. Bb2 {[%clk 0:02:32]}  Qd6 {[%clk 0:01:07]} 15. Rad1 {[%clk 0:02:29]}  Rad8 {[%clk 0:01:04]} 16. Qd3 {[%clk 0:02:27]}  Ne4 {[%clk 0:00:49]} 17. g3 {[%clk 0:02:27]}  Qf6 {[%clk 0:00:44]} 18. Kg2 {[%clk 0:02:22]}  Re6 {[%clk 0:00:30]} 19. Qc2 {[%clk 0:02:21]}  Qf5 {[%clk 0:00:19]} 20. Nh4 {[%clk 0:02:10]}  Qh5 {[%clk 0:00:16]} 21. c4 {[%clk 0:02:08]}  dxc4 {[%clk 0:00:10]} 22. Rxd8+ {[%clk 0:02:07]}  Bxd8 {[%clk 0:00:11]} 23. Qxc4 {[%clk 0:02:05]}  Bxh4 {[%clk 0:00:11]} 24. f3 {[%clk 0:01:45]}  Nd2 {[%clk 0:00:10]} 25. Qc3 {[%clk 0:01:45]}  Bf6 {[%clk 0:00:05]} 26. Qxd2 {[%clk 0:01:45]}  h6 {[%clk 0:00:04]} 27. Bxf6 {[%clk 0:01:45]}  Rxf6 {[%clk 0:00:04]} 28. e4 {[%clk 0:01:46]}  Qg5 {[%clk 0:00:03]} 29. Qxg5 {[%clk 0:01:45]}  hxg5 {[%clk 0:00:04]} 30. Rd1 {[%clk 0:01:45]}  Ra6 {[%clk 0:00:04]} 31. a4 {[%clk 0:01:44]}  Rb6 {[%clk 0:00:04]} 32. Rd3 {[%clk 0:01:44]}  Kf8 {[%clk 0:00:04]} 33. Kh3 {[%clk 0:01:44]}  Ke7 {[%clk 0:00:04]} 34. Kg4 {[%clk 0:01:45]}  Kf6 {[%clk 0:00:03]} 35. Rd5 {[%clk 0:01:40]}  Rxb3 {[%clk 0:00:03]} 36. Rxc5 {[%clk 0:01:40]}  Rb4 {[%clk 0:00:03]} 37. a5 {[%clk 0:01:38]}  g6 {[%clk 0:00:03]} 38. Rd5 {[%clk 0:01:37]}  Ra4 {[%clk 0:00:02]} 39. Rb5 {[%clk 0:01:37]}  a6 {[%clk 0:00:01]} 40. Rxb7 {[%clk 0:01:36]}  Rxa5 {[%clk 0:00:01]} 41. Rb6+ {[%clk 0:01:37]}  Kg7 {[%clk 0:00:02]} 42. Rb7 {[%clk 0:01:35]}  Ra2 {[%clk 0:00:02]} 43. h3 {[%clk 0:01:34]}  Ra5 {[%clk 0:00:01]} 44. Ra7 {[%clk 0:01:35]}  Ra3 {[%clk 0:00:01]} 45. e5 {[%clk 0:01:32]}  a5 {[%clk 0:00:01]} 46. e6 {[%clk 0:01:30]}  Kf6 {[%clk 0:00:01]} 47. Rxf7+ {[%clk 0:01:23]}  Kxe6 {[%clk 0:00:02]} 48. Ra7 {[%clk 0:01:24]}  Kf6 {[%clk 0:00:02]} 49. Ra6+ {[%clk 0:01:24]}  Kg7 {[%clk 0:00:02]} 50. Kxg5 {[%clk 0:01:23]}  Rxf3 {[%clk 0:00:02]} 51. Ra7+ {[%clk 0:01:23]}  Kg8 {[%clk 0:00:02]} 52. g4 {[%clk 0:01:22]}  Rxh3 {[%clk 0:00:03]} 53. Kxg6 {[%clk 0:01:23]}  Kh8 {[%clk 0:00:03]} 54. Ra8# {[%clk 0:01:23]} 1-0


[Site "https://www.chess.com"]